fUST/lending_fUST_20250603
["ID","MTS","AMOUNT","RATE_DAILY","PERIOD"]
[363940224,1748941840157,-467.60709174,0.00016438,2]
[363940226,1748941840167,-430.0,0.00016438,2]
[363940228,1748941840177,-432.12186968,0.00016438,2]
[363940230,1748941840187,-430.0,0.00016438,2]
[363940232,1748941840197,-547.74728167,0.00016438,2]
[363940234,1748941840207,-318.52231239,0.00016438,2]
[363940236,1748941840218,-430.0,0.00016438,2]
[363940238,1748941840227,-430.0,0.00016438,2]
[363940240,1748941840237,-440.0,0.00016438,2]
[363940242,1748941840248,-440.0,0.00016438,2]
[363940244,1748941840257,-440.0,0.00016438,2]
[363940246,1748941840268,-440.0,0.00016438,2]
[363940248,1748941840277,-440.0,0.00016438,2]
[363940250,1748941840294,-430.0,0.00016438,2]
[363940252,1748941840304,-294.3908648,0.00016438,2]
[363940254,1748941840313,-430.0,0.00016438,2]
[363940257,1748941840323,-430.0,0.00016438,2]
[363940259,1748941840335,-316.32705389,0.00016438,2]
[363940261,1748941840344,-440.0,0.00016438,2]
[363940263,1748941840354,-500.0,0.00016438,2]
[363940265,1748941840364,-430.0,0.00016438,2]
[363940267,1748941840374,-430.0,0.00016438,2]
[363940269,1748941840383,-1556.53,0.00016438,2]
[363940271,1748941840393,-430.0,0.00016438,2]
[363940273,1748941840402,-430.0,0.00016438,2]
[363940275,1748941840411,-430.0,0.00016438,2]
[363940277,1748941840421,-430.0,0.00016438,2]
[363940279,1748941840431,-440.0,0.00016438,2]
[363940281,1748941840440,-430.0,0.00016438,2]
[363940283,1748941840450,-440.0,0.00016438,2]
[363940285,1748941840460,-430.0,0.00016438,2]
[363940287,1748941840469,-430.0,0.00016438,2]
[363940289,1748941840478,-430.0,0.00016438,2]
[363940291,1748941840488,-430.0,0.00016438,2]
[363940293,1748941840498,-440.0,0.00016438,2]
[363940295,1748941840507,-430.0,0.00016438,2]
[363940297,1748941840517,-284.79336806,0.00016438,2]
[363940312,1748941840631,-430.0,0.00016438,2]
[363940315,1748941840657,-440.0,0.00016438,2]
[363940317,1748941840667,-430.0,0.00016438,2]
[363940319,1748941840676,-430.0,0.00016438,2]
[363940321,1748941840685,-440.0,0.00016438,2]
[363940323,1748941840693,-430.0,0.00016438,2]
[363940325,1748941840703,-549.08,0.00016438,2]
[363940327,1748941840712,-430.0,0.00016438,2]
[363940329,1748941840721,-430.0,0.00016438,2]
[363940331,1748941840731,-430.0,0.00016438,2]
[363940334,1748941840740,-440.0,0.00016438,2]
[363940336,1748941840751,-430.0,0.00016438,2]
[363940338,1748941840761,-430.0,0.00016438,2]
[363940340,1748941840771,-430.0,0.00016438,2]
[363940342,1748941840780,-440.0,0.00016438,2]
[363940344,1748941840790,-430.0,0.00016438,2]
[363940346,1748941840799,-430.0,0.00016438,2]
[363940348,1748941840808,-440.0,0.00016438,2]
[363940350,1748941840818,-430.0,0.00016438,2]
[363940352,1748941840828,-500.0,0.00016438,2]
[363940354,1748941840837,-500.0,0.00016438,2]
[363940356,1748941840846,-500.0,0.00016438,2]
[363940358,1748941840856,-440.0,0.00016438,2]
[363940360,1748941840865,-430.0,0.00016438,2]
[363940362,1748941840875,-430.0,0.00016438,2]
[363940364,1748941840884,-430.0,0.00016438,2]
[363940366,1748941840893,-440.0,0.00016438,2]
[363940368,1748941840902,-445.99,0.00016438,2]
[363940370,1748941840911,-430.0,0.00016438,2]
[363940372,1748941840921,-430.0,0.00016438,2]
[363940374,1748941840930,-430.0,0.00016438,2]
[363940376,1748941840939,-440.0,0.00016438,2]
[363940378,1748941840949,-436.48722184,0.00016438,2]
[363940380,1748941840958,-430.0,0.00016438,2]
[363940382,1748941840969,-440.0,0.00016438,2]
[363940384,1748941840978,-430.0,0.00016438,2]
[363940386,1748941840987,-701.83,0.00016438,2]
[363940388,1748941840997,-430.0,0.00016438,2]
[363940390,1748941841006,-430.0,0.00016438,2]
[363940392,1748941841016,-440.0,0.00016438,2]
[363940394,1748941841025,-430.0,0.00016438,2]
[363940396,1748941841034,-500.0,0.00016438,2]
[363940398,1748941841044,-500.59313402,0.00016438,2]
[363940400,1748941841054,-430.0,0.00016438,2]
[363940402,1748941841063,-440.0,0.00016438,2]
[363940404,1748941841073,-443.32,0.00016438,2]
[363940406,1748941841082,-280.5872001,0.00016438,2]
[363940408,1748941841092,-430.0,0.00016438,2]
[363940410,1748941841102,-430.0,0.00016438,2]
[363940412,1748941841112,-500.0,0.00016438,2]
[363940414,1748941841121,-430.0,0.00016438,2]
[363940416,1748941841131,-151.0,0.00016438,2]
[363940418,1748941841141,-926.92,0.00016438,2]
[363940420,1748941841150,-430.0,0.00016438,2]
[363940422,1748941841160,-433.56780728,0.00016438,2]
[363940424,1748941841169,-583.15,0.00016438,2]
[363940426,1748941841179,-440.0,0.00016438,2]
[363940428,1748941841190,-488.0867855,0.00016438,2]
[363940430,1748941841199,-505.21136589,0.00016438,2]
[363940432,1748941841209,-440.0,0.00016438,2]
[363940434,1748941841219,-440.0,0.00016438,2]
[363940436,1748941841228,-440.0,0.00016438,2]
[363940438,1748941841238,-440.0,0.00016438,2]
[363940440,1748941841249,-430.0,0.00016438,2]
[363940442,1748941841259,-430.0,0.00016438,2]
[363940444,1748941841269,-440.0,0.00016438,2]
[363940446,1748941841278,-430.0,0.00016438,2]
[363940448,1748941841293,-414.46421793,0.00016438,2]
[363940451,1748941841303,-400.0,0.00016438,2]
[363940453,1748941841313,-440.0,0.00016438,2]
[363940455,1748941841322,-634.11,0.00016438,2]
[363940457,1748941841334,-430.0,0.00016438,2]
[363940459,1748941841343,-430.0,0.00016438,2]
[363940461,1748941841352,-440.0,0.00016438,2]
[363940463,1748941841363,-551.37991038,0.00016438,2]
[363940465,1748941841373,-430.0,0.00016438,2]
[363940467,1748941841382,-465.19098946,0.00016438,2]
[363940469,1748941841392,-430.0,0.00016438,2]
[363940470,1748941841401,-430.0,0.00016438,2]
[363940471,1748941841411,-440.0,0.00016438,2]
[363940472,1748941841420,-430.52741207,0.00016438,2]
[363940473,1748941841431,-430.0,0.00016438,2]
[363940474,1748941841440,-245.31676408,0.00016438,2]
[363940475,1748941841451,-440.0,0.00016438,2]
[363940476,1748941841460,-440.0,0.00016438,2]
[363940477,1748941841470,-431.58134552,0.00016438,2]
[363940478,1748941841479,-195.40279732,0.00016438,2]
[363940479,1748941841489,-440.0,0.00016438,2]
[363940480,1748941841499,-235.74534492,0.00016438,2]
[363940481,1748941841509,-431.30942511,0.00016438,2]
[363940482,1748941841518,-418.4218042,0.00016438,2]
[363940483,1748941841528,-440.0,0.00016438,2]
[363940484,1748941841538,-430.98819149,0.00016438,2]
[363940485,1748941841547,-440.0,0.00016438,2]
[363940486,1748941841556,-440.0,0.00016438,2]
[363940487,1748941841566,-430.0,0.00016438,2]
[363940488,1748941841575,-430.0,0.00016438,2]
[363940489,1748941841584,-440.0,0.00016438,2]
[363940490,1748941841593,-440.0,0.00016438,2]
[363940491,1748941841603,-406.44319564,0.00016438,2]
[363940492,1748941841612,-440.0,0.00016438,2]
[363940494,1748941841622,-440.0,0.00016438,2]
[363940496,1748941841631,-440.0,0.00016438,2]
[363940498,1748941841640,-430.0,0.00016438,2]
[363940500,1748941841650,-440.0,0.00016438,2]
[363940502,1748941841660,-432.79574424,0.00016438,2]
[363940504,1748941841670,-430.0,0.00016438,2]
[363940506,1748941841679,-440.0,0.00016438,2]
[363940508,1748941841689,-430.0,0.00016438,2]
[363940510,1748941841698,-440.0,0.00016438,2]
[363940511,1748941841707,-430.0,0.00016438,2]
[363940513,1748941841717,-231.10527214,0.00016438,2]
[363940515,1748941841726,-430.0,0.00016438,2]
[363940517,1748941841736,-440.0,0.00016438,2]
[363940519,1748941841745,-431.0381353,0.00016438,2]
[363940521,1748941841755,-450.0,0.00016438,2]
[363940523,1748941841764,-416.33006213,0.00016438,2]
[363940525,1748941841774,-430.0,0.00016438,2]
[363940528,1748941841784,-440.0,0.00016438,2]
[363940529,1748941841794,-430.90984369,0.00016438,2]
[363940531,1748941841803,-440.0,0.00016438,2]
[363940533,1748941841813,-430.0,0.00016438,2]
[363940535,1748941841824,-440.0,0.00016438,2]
[363940537,1748941841833,-430.0,0.00016438,2]
[363940539,1748941841843,-430.0,0.00016438,2]
[363940541,1748941841852,-430.0,0.00016438,2]
[363940543,1748941841862,-235.94426565,0.00016438,2]
[363940545,1748941841871,-440.0,0.00016438,2]
[363940547,1748941841880,-430.0,0.00016438,2]
[363940549,1748941841891,-430.0,0.00016438,2]
[363940551,1748941841900,-430.0,0.00016438,2]
[363940553,1748941841910,-440.0,0.00016438,2]
[363940555,1748941841920,-151.0,0.00016438,2]
[363940557,1748941841929,-430.0,0.00016438,2]
[363940559,1748941841939,-440.0,0.00016438,2]
[363940561,1748941841949,-430.0,0.00016438,2]
[363940563,1748941841959,-430.0,0.00016438,2]
[363940565,1748941841968,-360.90418694,0.00016438,2]
[363940567,1748941841977,-440.0,0.00016438,2]
[363940569,1748941841986,-440.0,0.00016438,2]
[363940571,1748941841996,-430.0,0.00016438,2]
[363940573,1748941842005,-430.0,0.00016438,2]
[363940575,1748941842014,-440.0,0.00016438,2]
[363940577,1748941842024,-434.70349535,0.00016438,2]
[363940579,1748941842033,-440.0,0.00016438,2]
[363940581,1748941842043,-440.0,0.00016438,2]
[363940583,1748941842053,-440.0,0.00016438,2]
[363940585,1748941842062,-430.0,0.00016438,2]
[363940587,1748941842072,-430.0,0.00016438,2]
[363940589,1748941842081,-430.0,0.00016438,2]
[363940591,1748941842092,-430.77060879,0.00016438,2]
[363940593,1748941842103,-433.31974952,0.00016438,2]
[363940595,1748941842112,-300.0,0.00016438,2]
[363940597,1748941842121,-438.51435917,0.00016438,2]
[363940599,1748941842132,-430.0,0.00016438,2]
[363940601,1748941842143,-400.0,0.00016438,2]
[363940603,1748941842152,-430.0,0.00016438,2]
[363940605,1748941842162,-430.0,0.00016438,2]
[363940607,1748941842172,-159.71134693,0.00016438,2]
[363940609,1748941842182,-430.0,0.00016438,2]
[363940611,1748941842191,-430.0,0.00016438,2]
[363940613,1748941842201,-430.0,0.00016438,2]
[363940615,1748941842211,-430.0,0.00016438,2]
[363940617,1748941842220,-440.0,0.00016438,2]
[363940619,1748941842230,-430.0,0.00016438,2]
[363940621,1748941842240,-276.97095258,0.00016438,2]
[363940623,1748941842250,-434.74176524,0.00016438,2]
[363940625,1748941842259,-430.0,0.00016438,2]
[363940627,1748941842270,-401.70462869,0.00016438,2]
[363940629,1748941842280,-430.0,0.00016438,2]
[363940631,1748941842293,-222.4995426,0.00016438,2]
[363940633,1748941842302,-430.0,0.00016438,2]
[363940635,1748941842312,-430.0,0.00016438,2]
[363940637,1748941842321,-430.0,0.00016438,2]
[363940639,1748941842333,-430.0,0.00016438,2]
[363940641,1748941842342,-430.0,0.00016438,2]
[363940643,1748941842351,-430.0,0.00016438,2]
[363940645,1748941842361,-440.0,0.00016438,2]
[363940646,1748941842371,-431.6370925,0.00016438,2]
[363940648,1748941842381,-430.0,0.00016438,2]
[363940650,1748941842391,-430.0,0.00016438,2]
[363940653,1748941842401,-430.0,0.00016438,2]
[363940656,1748941842410,-430.0,0.00016438,2]
[363940658,1748941842419,-219.43897121,0.00016438,2]
[363940675,1748941842564,-210.56102879,0.00016438,2]
[363940677,1748941842574,-430.0,0.00016438,2]
[363940680,1748941842583,-430.0,0.00016438,2]
[363940682,1748941842595,-526.08000274,0.00016438,2]
[363940684,1748941842603,-430.0,0.00016438,2]
[363940686,1748941842613,-430.0,0.00016438,2]
[363940688,1748941842623,-430.0,0.00016438,2]
[363940690,1748941842633,-440.0,0.00016438,2]
[363940692,1748941842643,-430.0,0.00016438,2]
[363940694,1748941842653,-440.0,0.00016438,2]
[363940696,1748941842662,-430.0,0.00016438,2]
[363940698,1748941842671,-431.01750164,0.00016438,2]
[363940700,1748941842680,-500.0,0.00016465,2]
[363940702,1748941842688,-203.09275691,0.00016465,2]
[363940705,1748941842697,-500.0,0.00016493,2]
[363940707,1748941842706,-500.0,0.0001652,2]
[363940709,1748941842715,-500.0,0.00016548,2]
[363940711,1748941842724,-500.0,0.00016575,2]
[363940713,1748941842733,-500.0,0.00016602,2]
[363940715,1748941842742,-973.08483992,0.00016612,2]
[363940717,1748941842752,-500.0,0.0001663,2]
[363940719,1748941842761,-500.0,0.00016657,2]
[363940721,1748941842770,-500.0,0.00016685,2]
[363940723,1748941842780,-500.0,0.00016711,2]
[363940725,1748941842788,-502.83231656,0.00016712,2]
[363940727,1748941842797,-179.17,0.00016712,2]
[363940729,1748941842806,-420.0,0.00016712,2]
[363940731,1748941842814,-420.0,0.00016712,2]
[363940733,1748941842822,-420.0,0.00016712,2]
[363940735,1748941842831,-420.0,0.00016712,2]
[363940737,1748941842839,-420.0,0.00016712,2]
[363940739,1748941842848,-420.0,0.00016712,2]
[363940741,1748941842857,-420.0,0.00016712,2]
[363940743,1748941842867,-392.87135352,0.00016712,2]
[363940745,1748941842877,-420.0,0.00016712,2]
[363940747,1748941842887,-420.0,0.00016712,2]
[363940749,1748941842896,-420.0,0.00016712,2]
[363940751,1748941842907,-420.0,0.00016712,2]
[363940753,1748941842916,-420.0,0.00016712,2]
[363940755,1748941842926,-420.0,0.00016712,2]
[363940757,1748941842935,-420.0,0.00016712,2]
[363940759,1748941842944,-420.0,0.00016712,2]
[363940761,1748941842954,-297.03695198,0.00016712,2]
[363940763,1748941842964,-563.2572686,0.00016712,2]
[363940765,1748941842974,-420.0,0.00016712,2]
[363940767,1748941842983,-420.0,0.00016712,2]
[363940769,1748941842993,-420.0,0.00016712,2]
[363940771,1748941843003,-420.0,0.00016712,2]
[363940773,1748941843013,-440.0,0.00016712,2]
[363940775,1748941843023,-420.0,0.00016712,2]
[363940778,1748941843042,-420.0,0.00016712,2]
[363940780,1748941843054,-430.0,0.00016712,2]
[363940782,1748941843064,-340.0,0.00016712,2]
[363940784,1748941843075,-420.0,0.00016712,2]
[363940786,1748941843085,-152.19446849,0.00016712,2]
[363940788,1748941843096,-420.0,0.00016712,2]
[363940790,1748941843106,-420.0,0.00016712,2]
[363940792,1748941843116,-420.0,0.00016712,2]
[363940794,1748941843126,-420.0,0.00016712,2]
[363940796,1748941843135,-507.67681305,0.00016712,2]
[363940799,1748941843146,-420.0,0.00016712,2]
[363940801,1748941843156,-420.0,0.00016712,2]
[363940803,1748941843166,-440.0,0.00016712,2]
[363940805,1748941843176,-1556.53,0.00016712,2]
[363940807,1748941843186,-440.0,0.00016712,2]
[363940810,1748941843196,-440.0,0.00016712,2]
[363940813,1748941843207,-161.29780201,0.00016712,2]
[363940815,1748941843216,-420.0,0.00016712,2]
[363940817,1748941843226,-420.0,0.00016712,2]
[363940819,1748941843236,-549.08,0.00016712,2]
[363940835,1748941843399,-420.0,0.00016712,2]
[363940837,1748941843409,-420.0,0.00016712,2]
[363940839,1748941843419,-420.0,0.00016712,2]
[363940841,1748941843429,-420.0,0.00016712,2]
[363940843,1748941843438,-420.0,0.00016712,2]
[363940846,1748941843448,-420.0,0.00016712,2]
[363940848,1748941843458,-420.0,0.00016712,2]
[363940850,1748941843468,-701.83,0.00016712,2]
[363940852,1748941843477,-440.0,0.00016712,2]
[363940854,1748941843487,-428.66,0.00016712,2]
[363940856,1748941843498,-443.32,0.00016712,2]
[363940858,1748941843508,-926.92,0.00016712,2]
[363940859,1748941843517,-583.15,0.00016712,2]
[363940861,1748941843527,-420.0,0.00016712,2]
[363940863,1748941843536,-420.0,0.00016712,2]
[363940865,1748941843546,-420.0,0.00016712,2]
[363940867,1748941843555,-420.0,0.00016712,2]
[363940870,1748941843565,-420.0,0.00016712,2]
[363940872,1748941843574,-420.0,0.00016712,2]
[363940874,1748941843585,-420.0,0.00016712,2]
[363940876,1748941843594,-634.11,0.00016712,2]
[363940878,1748941843608,-420.0,0.00016712,2]
[363940880,1748941843617,-440.0,0.00016712,2]
[363940882,1748941843627,-420.0,0.00016712,2]
[363940884,1748941843637,-440.0,0.00016712,2]
[363940886,1748941843649,-440.0,0.00016712,2]
[363940889,1748941843659,-314.82145463,0.00016712,2]
[363940893,1748941843670,-420.0,0.00016712,2]
[363940896,1748941843680,-420.0,0.00016712,2]
[363940898,1748941843691,-440.0,0.00016712,2]
[363940900,1748941843700,-420.0,0.00016712,2]
[363940902,1748941843710,-420.0,0.00016712,2]
[363940904,1748941843720,-420.0,0.00016712,2]
[363940906,1748941843731,-420.0,0.00016712,2]
[363940908,1748941843741,-420.0,0.00016712,2]
[363940910,1748941843751,-420.0,0.00016712,2]
[363940912,1748941843761,-440.0,0.00016712,2]
[363940914,1748941843771,-420.0,0.00016712,2]
[363940916,1748941843780,-420.0,0.00016712,2]
[363940918,1748941843790,-420.0,0.00016712,2]
[363940920,1748941843800,-420.0,0.00016712,2]
[363940922,1748941843809,-420.0,0.00016712,2]
[363940924,1748941843819,-420.0,0.00016712,2]
[363940926,1748941843829,-440.0,0.00016712,2]
[363940928,1748941843839,-420.0,0.00016712,2]
[363940930,1748941843849,-420.0,0.00016712,2]
[363940932,1748941843859,-420.0,0.00016712,2]
[363940934,1748941843869,-374.2046547,0.00016712,2]
[363940936,1748941843879,-440.0,0.00016712,2]
[363940938,1748941843889,-440.0,0.00016712,2]
[363940940,1748941843899,-440.0,0.00016712,2]
[363940942,1748941843910,-440.0,0.00016712,2]
[363940944,1748941843919,-440.0,0.00016712,2]
[363940946,1748941843930,-501.75675153,0.00016754,2]
[363940948,1748941843939,-500.0,0.00016764,2]
[363940950,1748941843949,-500.0,0.00016985,2]
[363940952,1748941843959,-410.0,0.00016986,2]
[363940954,1748941843969,-440.0,0.00016986,2]
[363940955,1748941843979,-1556.53,0.00016986,2]
[363940956,1748941843988,-440.0,0.00016986,2]
[363940957,1748941843998,-440.0,0.00016986,2]
[363940958,1748941844009,-549.08,0.00016986,2]
[363940959,1748941844018,-701.83,0.00016986,2]
[363940960,1748941844027,-440.0,0.00016986,2]
[363940961,1748941844037,-443.32,0.00016986,2]
[363940962,1748941844046,-926.92,0.00016986,2]
[363940963,1748941844056,-583.15,0.00016986,2]
[363940964,1748941844066,-634.11,0.00016986,2]
[363940966,1748941844078,-440.0,0.00016986,2]
[363940968,1748941844088,-440.0,0.00016986,2]
[363940970,1748941844097,-440.0,0.00016986,2]
[363940972,1748941844107,-440.0,0.00016986,2]
[363940974,1748941844118,-440.0,0.00016986,2]
[363940976,1748941844128,-440.0,0.00016986,2]
[363940978,1748941844138,-440.0,0.00016986,2]
[363940980,1748941844149,-440.0,0.00016986,2]
[363940982,1748941844159,-440.0,0.00016986,2]
[363940985,1748941844169,-472.74791517,0.00016986,2]
[363940987,1748941844179,-240.62639309,0.00016986,2]
[363940989,1748941844188,-500.0,0.00017259,2]
[363940991,1748941844198,-400.0,0.0001726,2]
[363940993,1748941844207,-1556.53,0.0001726,2]
[363940995,1748941844217,-440.0,0.0001726,2]
[363940997,1748941844227,-440.0,0.0001726,2]
[363940999,1748941844237,-549.08,0.0001726,2]
[363941001,1748941844248,-701.83,0.0001726,2]
[363941003,1748941844258,-440.0,0.0001726,2]
[363941005,1748941844268,-443.32,0.0001726,2]
[363941007,1748941844278,-926.92,0.0001726,2]
[363941009,1748941844291,-583.15,0.0001726,2]
[363941011,1748941844301,-634.11,0.0001726,2]
[363941013,1748941844311,-366.45,0.0001726,2]
[363941015,1748941844321,-440.0,0.0001726,2]
[363941017,1748941844330,-440.0,0.0001726,2]
[363941019,1748941844340,-440.0,0.0001726,2]
[363941021,1748941844350,-440.0,0.0001726,2]
[363941023,1748941844359,-440.0,0.0001726,2]
[363941025,1748941844370,-440.0,0.0001726,2]
[363941027,1748941844380,-440.0,0.0001726,2]
[363941029,1748941844390,-440.0,0.0001726,2]
[363941031,1748941844400,-500.0,0.00017312,2]
[363941033,1748941844410,-973.08483988,0.00017434,2]
[363941035,1748941844419,-500.0,0.00017533,2]
[363941037,1748941844429,-1556.53,0.00017534,2]
[363941039,1748941844439,-440.0,0.00017534,2]
[363941041,1748941844448,-440.0,0.00017534,2]
[363941043,1748941844457,-549.08,0.00017534,2]
[363941045,1748941844466,-701.83,0.00017534,2]
[363941047,1748941844476,-440.0,0.00017534,2]
[363941049,1748941844485,-443.32,0.00017534,2]
[363941051,1748941844494,-926.92,0.00017534,2]
[363941053,1748941844505,-583.15,0.00017534,2]
[363941055,1748941844514,-634.11,0.00017534,2]
[363941057,1748941844524,-440.0,0.00017534,2]
[363941059,1748941844534,-440.0,0.00017534,2]
[363941061,1748941844543,-440.0,0.00017534,2]
[363941063,1748941844553,-440.0,0.00017534,2]
[363941065,1748941844562,-440.0,0.00017534,2]
[363941067,1748941844572,-440.0,0.00017534,2]
[363941069,1748941844581,-440.0,0.00017534,2]
[363941071,1748941844590,-440.0,0.00017534,2]
[363941073,1748941844598,-500.0,0.00017807,2]
[363941075,1748941844607,-1556.53,0.00017808,2]
[363941077,1748941844617,-440.0,0.00017808,2]
[363941079,1748941844626,-440.0,0.00017808,2]
[363941081,1748941844635,-549.08,0.00017808,2]
[363941084,1748941844645,-701.83,0.00017808,2]
[363941086,1748941844655,-440.0,0.00017808,2]
[363941088,1748941844664,-443.32,0.00017808,2]
[363941090,1748941844673,-926.92,0.00017808,2]
[363941092,1748941844682,-583.15,0.00017808,2]
[363941094,1748941844695,-634.11,0.00017808,2]
[363941097,1748941844708,-440.0,0.00017808,2]
[363941099,1748941844722,-440.0,0.00017808,2]
[363941102,1748941844736,-440.0,0.00017808,2]
[363941104,1748941844749,-440.0,0.00017808,2]
[363941106,1748941844760,-440.0,0.00017808,2]
[363941109,1748941844771,-440.0,0.00017808,2]
[363941111,1748941844784,-440.0,0.00017808,2]
[363941113,1748941844795,-440.0,0.00017808,2]
[363941115,1748941844805,-160.0,0.0001785,2]
[363941117,1748941844815,-160.0,0.0001785,2]
[363941120,1748941844826,-160.0,0.0001785,2]
[363941122,1748941844836,-842.5625,0.0001785,2]
[363941124,1748941844846,-229.42821335,0.0001785,2]
[363941126,1748941844856,-160.0,0.0001785,2]
[363941129,1748941844868,-12670.76136593,0.0001785,2]
[363941131,1748941844881,-160.0,0.0001785,2]
[363941133,1748941844894,-160.0,0.0001785,2]
[363941136,1748941844908,-160.0,0.0001785,2]
[363941138,1748941844920,-212.86879254,0.0001785,2]
[363941140,1748941844933,-423.63107087,0.0001785,2]
[363941143,1748941844945,-979.50697106,0.000179,2]
[363941145,1748941844958,-500.0,0.00017921,2]
[363941149,1748941844985,-500.0,0.00018081,2]
[363941151,1748941845001,-1556.53,0.00018082,2]
[363941154,1748941845015,-440.0,0.00018082,2]
[363941156,1748941845029,-440.0,0.00018082,2]
[363941158,1748941845040,-549.08,0.00018082,2]
[363941161,1748941845053,-701.83,0.00018082,2]
[363941163,1748941845068,-440.0,0.00018082,2]
[363941166,1748941845079,-443.32,0.00018082,2]
[363941168,1748941845092,-926.92,0.00018082,2]
[363941170,1748941845106,-583.15,0.00018082,2]
[363941173,1748941845120,-634.11,0.00018082,2]
[363941175,1748941845134,-440.0,0.00018082,2]
[363941178,1748941845149,-440.0,0.00018082,2]
[363941180,1748941845163,-440.0,0.00018082,2]
[363941183,1748941845179,-440.0,0.00018082,2]
[363941186,1748941845194,-440.0,0.00018082,2]
[363941188,1748941845208,-476.35,0.00018082,2]
[363941190,1748941845219,-440.0,0.00018082,2]
[363941193,1748941845231,-440.0,0.00018082,2]
[363941195,1748941845242,-162.0,0.00018082,3]
[363941197,1748941845254,-979.50697086,0.00018141,2]
[363941199,1748941845268,-973.08483988,0.00018256,2]
[363941202,1748941845283,-572.86625827,0.00018355,2]
[363941204,1748941845299,-1556.53,0.00018356,2]
[363941207,1748941845312,-440.0,0.00018356,2]
[363941209,1748941845321,-440.0,0.00018356,2]
[363941211,1748941845335,-549.08,0.00018356,2]
[363941213,1748941845346,-701.83,0.00018356,2]
[363941215,1748941845357,-440.0,0.00018356,2]
[363941218,1748941845373,-443.32,0.00018356,2]
[363941220,1748941845387,-926.92,0.00018356,2]
[363941223,1748941845399,-583.15,0.00018356,2]
[363941225,1748941845411,-634.11,0.00018356,2]
[363941227,1748941845423,-440.0,0.00018356,2]
[363941229,1748941845434,-440.0,0.00018356,2]
[363941233,1748941845447,-440.0,0.00018356,2]
[363941235,1748941845460,-440.0,0.00018356,2]
[363941238,1748941845472,-440.0,0.00018356,2]
[363941240,1748941845484,-440.0,0.00018356,2]
[363941244,1748941845496,-440.0,0.00018356,2]
[363941247,1748941845509,-979.50697086,0.00018383,2]
[363941249,1748941845522,-500.0,0.00018573,2]
[363941253,1748941845535,-979.50697086,0.00018624,2]
[363941257,1748941845548,-1556.53,0.0001863,2]
[363941260,1748941845560,-440.0,0.0001863,2]
[363941265,1748941845573,-440.0,0.0001863,2]
[363941269,1748941845588,-549.08,0.0001863,2]
[363941272,1748941845601,-701.83,0.0001863,2]
[363941276,1748941845613,-440.0,0.0001863,2]
[363941278,1748941845627,-443.32,0.0001863,2]
[363941280,1748941845638,-926.92,0.0001863,2]
[363941282,1748941845651,-583.15,0.0001863,2]
[363941285,1748941845663,-634.11,0.0001863,2]
[363941287,1748941845674,-440.0,0.0001863,2]
[363941289,1748941845686,-440.0,0.0001863,2]